[Event "Titled Tuesday Blitz April 19 Late 2022"]
[White "Fernandez Hernandez, Gerardo"]
[Black "Blackman, Justin"]
[WhiteFideId "2207400"]
[BlackFideId "11100516"]
[WhiteElo "2156"]
[BlackElo "2112"]
[Result "0-1"]
[Round "06"]
[TimeControl "180+1"]
[Date "2022.04.19"]
[WhiteClock "0:00:02"]
[BlackClock "0:00:29"]

1. e4 {[%clk 0:03:00]}  e5 {[%clk 0:02:58]} 2. Nf3 {[%clk 0:03:00]}  Nc6 {[%clk 0:02:58]} 3. Bc4 {[%clk 0:03:00]}  Bc5 {[%clk 0:02:56]} 4. b4 {[%clk 0:03:00]}  Bxb4 {[%clk 0:02:56]} 5. c3 {[%clk 0:03:00]}  Ba5 {[%clk 0:02:56]} 6. d4 {[%clk 0:02:59]}  d6 {[%clk 0:02:49]} 7. Qb3 {[%clk 0:02:56]}  Qd7 {[%clk 0:02:49]} 8. d5 {[%clk 0:02:45]}  Nce7 {[%clk 0:02:45]} 9. Nbd2 {[%clk 0:02:22]}  Nf6 {[%clk 0:02:34]} 10. O-O {[%clk 0:02:21]}  O-O {[%clk 0:02:26]} 11. Ba3 {[%clk 0:02:15]}  Ng6 {[%clk 0:02:16]} 12. Bb5 {[%clk 0:02:04]}  Qe7 {[%clk 0:02:08]} 13. Nc4 {[%clk 0:01:59]}  Bb6 {[%clk 0:02:02]} 14. Rae1 {[%clk 0:01:54]}  Bg4 {[%clk 0:01:39]} 15. Ncd2 {[%clk 0:01:38]}  Nf4 {[%clk 0:01:36]} 16. h3 {[%clk 0:01:34]}  Bh5 {[%clk 0:01:33]} 17. Kh2 {[%clk 0:01:22]}  Bxf3 {[%clk 0:01:27]} 18. Nxf3 {[%clk 0:01:19]}  Kh8 {[%clk 0:01:27]} 19. g3 {[%clk 0:01:14]}  Ng6 {[%clk 0:01:21]} 20. Bd3 {[%clk 0:01:04]}  Ng8 {[%clk 0:01:19]} 21. c4 {[%clk 0:00:59]}  Nh6 {[%clk 0:01:17]} 22. c5 {[%clk 0:00:49]}  dxc5 {[%clk 0:01:15]} 23. Bc1 {[%clk 0:00:44]}  Ng8 {[%clk 0:01:08]} 24. Bg5 {[%clk 0:00:40]}  Qd6 {[%clk 0:01:06]} 25. Nd2 {[%clk 0:00:36]}  N8e7 {[%clk 0:01:02]} 26. Nc4 {[%clk 0:00:35]}  Qd7 {[%clk 0:01:02]} 27. a4 {[%clk 0:00:29]}  f6 {[%clk 0:00:55]} 28. Be3 {[%clk 0:00:22]}  c6 {[%clk 0:00:55]} 29. d6 {[%clk 0:00:19]}  Nc8 {[%clk 0:00:55]} 30. a5 {[%clk 0:00:19]}  Bd8 {[%clk 0:00:55]} 31. Bxc5 {[%clk 0:00:19]}  Rb8 {[%clk 0:00:52]} 32. f4 {[%clk 0:00:18]}  b6 {[%clk 0:00:52]} 33. axb6 {[%clk 0:00:17]}  axb6 {[%clk 0:00:52]} 34. f5 {[%clk 0:00:16]}  Ra8 {[%clk 0:00:45]} 35. fxg6 {[%clk 0:00:14]}  b5 {[%clk 0:00:45]} 36. Ne3 {[%clk 0:00:13]}  hxg6 {[%clk 0:00:43]} 37. Qd1 {[%clk 0:00:11]}  g5 {[%clk 0:00:40]} 38. Nf5 {[%clk 0:00:10]}  g6 {[%clk 0:00:39]} 39. Ne3 {[%clk 0:00:05]}  Qe6 {[%clk 0:00:35]} 40. Qg4 {[%clk 0:00:04]}  Qb3 {[%clk 0:00:31]} 41. Be2 {[%clk 0:00:02]}  Rf7 {[%clk 0:00:29]} 0-1


[Site "https://www.chess.com"]

[Event "Titled Tuesday Blitz April 19 Late 2022"]
[White "Ferreira, Vitor Hugo Vieira"]
[Black "Hoffmann, Asa"]
[WhiteFideId "2119765"]
[BlackFideId "2001470"]
[WhiteElo "2165"]
[BlackElo "2117"]
[Result "1-0"]
[Round "06"]
[TimeControl "180+1"]
[Date "2022.04.19"]
[WhiteClock "0:01:33"]
[BlackClock "0:00:01"]

1. d4 {[%clk 0:03:00]}  Nf6 {[%clk 0:02:57]} 2. c4 {[%clk 0:03:00]}  c5 {[%clk 0:02:56]} 3. d5 {[%clk 0:03:00]}  e5 {[%clk 0:02:54]} 4. dxe6 {[%clk 0:02:59]}  fxe6 {[%clk 0:02:53]} 5. Nc3 {[%clk 0:02:59]}  d5 {[%clk 0:02:47]} 6. cxd5 {[%clk 0:02:57]}  exd5 {[%clk 0:02:46]} 7. e4 {[%clk 0:02:57]}  d4 {[%clk 0:02:46]} 8. e5 {[%clk 0:02:58]}  Qe7 {[%clk 0:02:36]} 9. Qe2 {[%clk 0:02:52]}  dxc3 {[%clk 0:02:20]} 10. exf6 {[%clk 0:02:52]}  gxf6 {[%clk 0:02:11]} 11. bxc3 {[%clk 0:02:48]}  Nc6 {[%clk 0:02:05]} 12. Nf3 {[%clk 0:02:48]}  Bg4 {[%clk 0:02:04]} 13. Qxe7+ {[%clk 0:02:46]}  Bxe7 {[%clk 0:02:04]} 14. Bb5 {[%clk 0:02:46]}  Bxf3 {[%clk 0:02:02]} 15. gxf3 {[%clk 0:02:46]}  O-O-O {[%clk 0:01:59]} 16. Be3 {[%clk 0:02:44]}  Ne5 {[%clk 0:01:57]} 17. Ke2 {[%clk 0:02:39]}  a6 {[%clk 0:01:56]} 18. Ba4 {[%clk 0:02:38]}  b5 {[%clk 0:01:40]} 19. Bc2 {[%clk 0:02:37]}  Kc7 {[%clk 0:01:39]} 20. a4 {[%clk 0:02:32]}  b4 {[%clk 0:01:38]} 21. cxb4 {[%clk 0:02:32]}  cxb4 {[%clk 0:01:38]} 22. Bf5 {[%clk 0:02:31]}  Rd6 {[%clk 0:01:14]} 23. Bc5 {[%clk 0:02:25]}  Rb8 {[%clk 0:01:02]} 24. Bxd6+ {[%clk 0:02:23]}  Bxd6 {[%clk 0:01:01]} 25. a5 {[%clk 0:02:22]}  b3 {[%clk 0:01:00]} 26. Rhc1+ {[%clk 0:02:20]}  Kd8 {[%clk 0:00:58]} 27. Rab1 {[%clk 0:02:21]}  Rb5 {[%clk 0:00:47]} 28. Rc3 {[%clk 0:02:19]}  b2 {[%clk 0:00:44]} 29. Rc2 {[%clk 0:02:19]}  Ba3 {[%clk 0:00:40]} 30. Bxh7 {[%clk 0:02:14]}  Rxa5 {[%clk 0:00:38]} 31. Be4 {[%clk 0:02:14]}  Ke7 {[%clk 0:00:29]} 32. h4 {[%clk 0:02:10]}  Nd7 {[%clk 0:00:14]} 33. Rc7 {[%clk 0:02:09]}  Kd6 {[%clk 0:00:11]} 34. Rc6+ {[%clk 0:02:04]}  Ke7 {[%clk 0:00:11]} 35. Rd1 {[%clk 0:02:04]}  Ne5 {[%clk 0:00:04]} 36. Rc7+ {[%clk 0:02:03]}  Ke6 {[%clk 0:00:03]} 37. f4 {[%clk 0:01:55]}  Nf7 {[%clk 0:00:02]} 38. f3 {[%clk 0:01:41]}  Nd6 {[%clk 0:00:02]} 39. f5+ {[%clk 0:01:38]}  Ke5 {[%clk 0:00:01]} 40. Re7+ {[%clk 0:01:32]}  Kf4 {[%clk 0:00:01]} 41. Rg1 {[%clk 0:01:33]} 1-0


[Site "https://www.chess.com"]

[Event "Titled Tuesday Blitz April 19 Late 2022"]
[White "Hernandez Bermudez, Ulises Eduardo"]
[Black "Petrovic, Aleksa"]
[WhiteFideId "3902510"]
[BlackFideId "967629"]
[WhiteElo "2056"]
[BlackElo "2198"]
[Result "0-1"]
[Round "06"]
[TimeControl "180+1"]
[Date "2022.04.19"]
[WhiteClock "0:00:16"]
[BlackClock "0:00:13"]

1. e4 {[%clk 0:03:00]}  e6 {[%clk 0:02:59]} 2. d4 {[%clk 0:03:00]}  d5 {[%clk 0:02:59]} 3. e5 {[%clk 0:03:00]}  c5 {[%clk 0:02:58]} 4. c3 {[%clk 0:03:00]}  Ne7 {[%clk 0:02:58]} 5. Nf3 {[%clk 0:02:59]}  Nec6 {[%clk 0:02:58]} 6. a3 {[%clk 0:02:56]}  a5 {[%clk 0:02:53]} 7. Bd3 {[%clk 0:02:44]}  b6 {[%clk 0:02:52]} 8. O-O {[%clk 0:02:33]}  Ba6 {[%clk 0:02:51]} 9. Bxa6 {[%clk 0:02:32]}  Rxa6 {[%clk 0:02:51]} 10. Be3 {[%clk 0:02:32]}  c4 {[%clk 0:02:46]} 11. Nbd2 {[%clk 0:02:31]}  b5 {[%clk 0:02:46]} 12. Re1 {[%clk 0:02:29]}  Qb6 {[%clk 0:02:45]} 13. g3 {[%clk 0:02:27]}  b4 {[%clk 0:02:44]} 14. axb4 {[%clk 0:02:27]}  axb4 {[%clk 0:02:44]} 15. Rxa6 {[%clk 0:02:24]}  Qxa6 {[%clk 0:02:42]} 16. Qa1 {[%clk 0:02:24]}  Be7 {[%clk 0:02:36]} 17. Qxa6 {[%clk 0:02:23]}  Nxa6 {[%clk 0:02:37]} 18. Ra1 {[%clk 0:02:23]}  Nc7 {[%clk 0:02:37]} 19. Kg2 {[%clk 0:02:13]}  Kd7 {[%clk 0:02:36]} 20. Bg5 {[%clk 0:02:04]}  Ra8 {[%clk 0:02:31]} 21. Rxa8 {[%clk 0:02:03]}  Nxa8 {[%clk 0:02:32]} 22. Bxe7 {[%clk 0:02:03]}  Kxe7 {[%clk 0:02:32]} 23. Ne1 {[%clk 0:01:57]}  Nb6 {[%clk 0:02:31]} 24. Nc2 {[%clk 0:01:30]}  b3 {[%clk 0:02:26]} 25. Ne3 {[%clk 0:01:28]}  Na4 {[%clk 0:02:18]} 26. Nd1 {[%clk 0:01:27]}  f6 {[%clk 0:01:59]} 27. f4 {[%clk 0:01:26]}  h5 {[%clk 0:01:57]} 28. Kf3 {[%clk 0:01:23]}  Kf7 {[%clk 0:01:56]} 29. h4 {[%clk 0:01:21]}  Kg6 {[%clk 0:01:51]} 30. Nf1 {[%clk 0:01:17]}  Na7 {[%clk 0:01:44]} 31. Nfe3 {[%clk 0:01:15]}  Nb5 {[%clk 0:01:42]} 32. f5+ {[%clk 0:01:13]}  Kf7 {[%clk 0:01:39]} 33. fxe6+ {[%clk 0:01:12]}  Kxe6 {[%clk 0:01:39]} 34. exf6 {[%clk 0:01:12]}  gxf6 {[%clk 0:01:39]} 35. Ke2 {[%clk 0:01:07]}  Nd6 {[%clk 0:01:21]} 36. Ng2 {[%clk 0:01:02]}  Ne4 {[%clk 0:01:19]} 37. Nf4+ {[%clk 0:01:02]}  Kd6 {[%clk 0:01:19]} 38. Nxh5 {[%clk 0:01:00]}  f5 {[%clk 0:00:57]} 39. Ke3 {[%clk 0:00:50]}  Ke7 {[%clk 0:00:44]} 40. Nf4 {[%clk 0:00:48]}  Nxg3 {[%clk 0:00:40]} 41. Nxd5+ {[%clk 0:00:46]}  Kd6 {[%clk 0:00:40]} 42. Nf4 {[%clk 0:00:44]}  Nb6 {[%clk 0:00:28]} 43. Kf3 {[%clk 0:00:38]}  Ne4 {[%clk 0:00:24]} 44. Ne3 {[%clk 0:00:36]}  Nxc3 {[%clk 0:00:20]} 45. Nxf5+ {[%clk 0:00:33]}  Kd7 {[%clk 0:00:16]} 46. h5 {[%clk 0:00:32]}  Ncd5 {[%clk 0:00:16]} 47. Ne2 {[%clk 0:00:29]}  c3 {[%clk 0:00:15]} 48. h6 {[%clk 0:00:24]}  cxb2 {[%clk 0:00:12]} 49. h7 {[%clk 0:00:20]}  b1=Q {[%clk 0:00:12]} 50. h8=Q {[%clk 0:00:19]}  Qf1+ {[%clk 0:00:13]} 51. Ke4 {[%clk 0:00:19]}  Qxe2+ {[%clk 0:00:12]} 52. Ne3 {[%clk 0:00:17]}  Qxe3+ {[%clk 0:00:12]} 53. Kf5 {[%clk 0:00:17]}  Qf4+ {[%clk 0:00:12]} 54. Kg6 {[%clk 0:00:17]}  Qf6+ {[%clk 0:00:12]} 55. Qxf6 {[%clk 0:00:16]}  Nxf6 {[%clk 0:00:13]} 0-1


[Site "https://www.chess.com"]

[Event "Titled Tuesday Blitz April 19 Late 2022"]
[White "Herrera Reyes, Jose Antonio"]
[Black "Wagner, Dinara"]
[WhiteFideId "2274914"]
[BlackFideId "24157570"]
[WhiteElo "2651"]
[BlackElo "2503"]
[Result "1-0"]
[Round "06"]
[TimeControl "180+1"]
[Date "2022.04.19"]
[WhiteClock "0:00:48"]
[BlackClock "0:00:04"]

1. Nf3 {[%clk 0:03:00]}  d5 {[%clk 0:02:59]} 2. g3 {[%clk 0:03:00]}  c6 {[%clk 0:02:59]} 3. Bg2 {[%clk 0:03:00]}  Bf5 {[%clk 0:02:58]} 4. d3 {[%clk 0:03:00]}  Nd7 {[%clk 0:02:58]} 5. O-O {[%clk 0:03:00]}  e6 {[%clk 0:02:58]} 6. c3 {[%clk 0:03:00]}  Ngf6 {[%clk 0:02:58]} 7. Qb3 {[%clk 0:03:00]}  Qb6 {[%clk 0:02:56]} 8. Be3 {[%clk 0:03:01]}  Qxb3 {[%clk 0:02:56]} 9. axb3 {[%clk 0:03:02]}  a6 {[%clk 0:02:56]} 10. b4 {[%clk 0:03:02]}  h6 {[%clk 0:02:55]} 11. Nbd2 {[%clk 0:03:02]}  Rc8 {[%clk 0:02:54]} 12. Nb3 {[%clk 0:03:02]}  e5 {[%clk 0:02:16]} 13. Na5 {[%clk 0:03:00]}  Rc7 {[%clk 0:02:13]} 14. Nh4 {[%clk 0:02:39]}  Bh7 {[%clk 0:02:08]} 15. f4 {[%clk 0:02:39]}  Bd6 {[%clk 0:02:01]} 16. fxe5 {[%clk 0:02:38]}  Bxe5 {[%clk 0:02:01]} 17. Nf5 {[%clk 0:02:30]}  Bxf5 {[%clk 0:01:56]} 18. Rxf5 {[%clk 0:02:31]}  O-O {[%clk 0:01:54]} 19. Raf1 {[%clk 0:02:29]}  Re8 {[%clk 0:01:53]} 20. Bc1 {[%clk 0:02:23]}  Bd6 {[%clk 0:01:52]} 21. e4 {[%clk 0:02:16]}  dxe4 {[%clk 0:01:41]} 22. dxe4 {[%clk 0:02:17]}  Ne5 {[%clk 0:01:40]} 23. Bxh6 {[%clk 0:02:14]}  Nfg4 {[%clk 0:01:24]} 24. Bc1 {[%clk 0:02:12]}  g6 {[%clk 0:01:22]} 25. R5f4 {[%clk 0:02:09]}  Kg7 {[%clk 0:01:13]} 26. Rd1 {[%clk 0:02:02]}  Be7 {[%clk 0:01:05]} 27. h3 {[%clk 0:01:57]}  Nf6 {[%clk 0:01:05]} 28. Rff1 {[%clk 0:01:55]}  Nfd7 {[%clk 0:00:50]} 29. Bf4 {[%clk 0:01:51]}  Bf6 {[%clk 0:00:50]} 30. g4 {[%clk 0:01:51]}  g5 {[%clk 0:00:38]} 31. Bg3 {[%clk 0:01:51]}  Nf8 {[%clk 0:00:37]} 32. Nb3 {[%clk 0:01:40]}  Nfg6 {[%clk 0:00:34]} 33. Nd4 {[%clk 0:01:39]}  Nh4 {[%clk 0:00:17]} 34. Nf5+ {[%clk 0:01:24]}  Nxf5 {[%clk 0:00:17]} 35. Rxf5 {[%clk 0:01:25]}  Rce7 {[%clk 0:00:17]} 36. Rdf1 {[%clk 0:01:24]}  Re6 {[%clk 0:00:17]} 37. Bxe5 {[%clk 0:01:19]}  Bxe5 {[%clk 0:00:18]} 38. Rxf7+ {[%clk 0:01:20]}  Kg6 {[%clk 0:00:18]} 39. Rxb7 {[%clk 0:01:20]}  Bf4 {[%clk 0:00:18]} 40. h4 {[%clk 0:01:15]}  Rd6 {[%clk 0:00:17]} 41. hxg5 {[%clk 0:01:12]}  Be3+ {[%clk 0:00:16]} 42. Kh2 {[%clk 0:01:11]}  Rh8+ {[%clk 0:00:17]} 43. Kg3 {[%clk 0:01:11]}  Bxg5 {[%clk 0:00:15]} 44. e5 {[%clk 0:01:07]}  Rd3+ {[%clk 0:00:11]} 45. Rf3 {[%clk 0:01:06]}  Bh4+ {[%clk 0:00:10]} 46. Kf4 {[%clk 0:01:07]}  Rf8+ {[%clk 0:00:07]} 47. Ke4 {[%clk 0:01:07]}  Rd1 {[%clk 0:00:03]} 48. Rxf8 {[%clk 0:01:06]}  Re1+ {[%clk 0:00:04]} 49. Kd3 {[%clk 0:01:06]}  Bg3 {[%clk 0:00:04]} 50. Be4+ {[%clk 0:01:07]}  Kg5 {[%clk 0:00:04]} 51. Rg7+ {[%clk 0:01:06]}  Kh6 {[%clk 0:00:04]} 52. Rg6+ {[%clk 0:01:06]}  Kh7 {[%clk 0:00:04]} 53. Rf7+ {[%clk 0:01:06]}  Kh8 {[%clk 0:00:04]} 54. Rf8+ {[%clk 0:00:49]}  Kh7 {[%clk 0:00:04]} 55. Rgg8+ {[%clk 0:00:49]}  Kh6 {[%clk 0:00:04]} 56. Rf6# {[%clk 0:00:48]} 1-0


[Site "https://www.chess.com"]

[Event "Titled Tuesday Blitz April 19 Late 2022"]
[White "Isajevsky, Anton"]
[Black "Nazaretyan, Tigran"]
[WhiteFideId "4142500"]
[BlackFideId "24162345"]
[WhiteElo "2528"]
[BlackElo "2658"]
[Result "1-0"]
[Round "06"]
[TimeControl "180+1"]
[Date "2022.04.19"]
[WhiteClock "0:00:20"]
[BlackClock "0:00:37"]

1. c4 {[%clk 0:02:56]}  e5 {[%clk 0:02:57]} 2. g3 {[%clk 0:02:57]}  Nf6 {[%clk 0:02:56]} 3. Bg2 {[%clk 0:02:57]}  c6 {[%clk 0:02:56]} 4. d4 {[%clk 0:02:57]}  exd4 {[%clk 0:02:49]} 5. Qxd4 {[%clk 0:02:58]}  d5 {[%clk 0:02:49]} 6. cxd5 {[%clk 0:02:46]}  cxd5 {[%clk 0:02:48]} 7. a3 {[%clk 0:02:46]}  Nc6 {[%clk 0:02:47]} 8. Qd3 {[%clk 0:02:46]}  g6 {[%clk 0:02:42]} 9. Nf3 {[%clk 0:02:40]}  Bf5 {[%clk 0:02:41]} 10. Qd1 {[%clk 0:02:38]}  Bg7 {[%clk 0:02:38]} 11. O-O {[%clk 0:02:38]}  O-O {[%clk 0:02:37]} 12. Nc3 {[%clk 0:02:33]}  d4 {[%clk 0:02:24]} 13. Na4 {[%clk 0:01:48]}  Ne4 {[%clk 0:02:20]} 14. Nh4 {[%clk 0:01:27]}  b5 {[%clk 0:02:10]} 15. Nxf5 {[%clk 0:01:27]}  gxf5 {[%clk 0:02:09]} 16. Nc5 {[%clk 0:01:27]}  Qe7 {[%clk 0:01:59]} 17. Nd3 {[%clk 0:01:22]}  Rac8 {[%clk 0:01:55]} 18. Bf4 {[%clk 0:01:12]}  Rfd8 {[%clk 0:01:48]} 19. Rc1 {[%clk 0:01:11]}  Na5 {[%clk 0:01:43]} 20. Re1 {[%clk 0:00:23]}  Nc4 {[%clk 0:01:41]} 21. Qb3 {[%clk 0:00:21]}  a6 {[%clk 0:01:38]} 22. a4 {[%clk 0:00:17]}  Na5 {[%clk 0:01:16]} 23. Qd1 {[%clk 0:00:17]}  b4 {[%clk 0:01:16]} 24. Rxc8 {[%clk 0:00:11]}  Rxc8 {[%clk 0:01:15]} 25. e3 {[%clk 0:00:12]}  Nc4 {[%clk 0:01:12]} 26. exd4 {[%clk 0:00:12]}  Bxd4 {[%clk 0:01:12]} 27. Qh5 {[%clk 0:00:12]}  Qa7 {[%clk 0:01:04]} 28. Bxe4 {[%clk 0:00:09]}  fxe4 {[%clk 0:01:01]} 29. Rxe4 {[%clk 0:00:10]}  Bf6 {[%clk 0:00:47]} 30. Qg4+ {[%clk 0:00:10]}  Kf8 {[%clk 0:00:44]} 31. Qxc8+ {[%clk 0:00:11]}  Kg7 {[%clk 0:00:45]} 32. Qxc4 {[%clk 0:00:11]}  a5 {[%clk 0:00:43]} 33. Be5 {[%clk 0:00:11]}  Qe7 {[%clk 0:00:39]} 34. Bxf6+ {[%clk 0:00:11]}  Qxf6 {[%clk 0:00:38]} 35. Qd4 {[%clk 0:00:12]}  Qxd4 {[%clk 0:00:33]} 36. Rxd4 {[%clk 0:00:13]}  f5 {[%clk 0:00:32]} 37. f4 {[%clk 0:00:14]}  h5 {[%clk 0:00:32]} 38. Kf2 {[%clk 0:00:15]}  h4 {[%clk 0:00:32]} 39. Ke3 {[%clk 0:00:16]}  hxg3 {[%clk 0:00:32]} 40. hxg3 {[%clk 0:00:17]}  Kg6 {[%clk 0:00:31]} 41. Rd5 {[%clk 0:00:18]}  Kh5 {[%clk 0:00:32]} 42. Rxf5+ {[%clk 0:00:18]}  Kg4 {[%clk 0:00:33]} 43. Rxa5 {[%clk 0:00:18]}  Kh3 {[%clk 0:00:33]} 44. Nxb4 {[%clk 0:00:18]}  Kg4 {[%clk 0:00:33]} 45. Rd5 {[%clk 0:00:18]}  Kh3 {[%clk 0:00:33]} 46. a5 {[%clk 0:00:19]}  Kg4 {[%clk 0:00:34]} 47. a6 {[%clk 0:00:20]}  Kh3 {[%clk 0:00:34]} 48. a7 {[%clk 0:00:21]}  Kg4 {[%clk 0:00:35]} 49. a8=Q {[%clk 0:00:22]}  Kh3 {[%clk 0:00:36]} 50. f5 {[%clk 0:00:21]}  Kg4 {[%clk 0:00:37]} 51. f6 {[%clk 0:00:22]}  Kh3 {[%clk 0:00:37]} 52. f7 {[%clk 0:00:23]}  Kg2 {[%clk 0:00:38]} 53. f8=Q {[%clk 0:00:22]}  Kh3 {[%clk 0:00:37]} 54. Rh5+ {[%clk 0:00:20]} 1-0


[Site "https://www.chess.com"]

[Event "Titled Tuesday Blitz April 19 Late 2022"]
[White "Janaszak, Dawid"]
[Black "Sliwicki, Damian"]
[WhiteFideId "1119206"]
[BlackFideId "1127128"]
[WhiteElo "2199"]
[BlackElo "2084"]
[Result "1-0"]
[Round "06"]
[TimeControl "180+1"]
[Date "2022.04.19"]
[WhiteClock "0:00:40"]
[BlackClock "0:00:57"]

1. d4 {[%clk 0:03:00]}  d5 {[%clk 0:02:31]} 2. Bf4 {[%clk 0:02:59]}  Nf6 {[%clk 0:02:29]} 3. Nf3 {[%clk 0:02:59]}  e6 {[%clk 0:02:29]} 4. e3 {[%clk 0:02:59]}  Bd6 {[%clk 0:02:29]} 5. Nbd2 {[%clk 0:02:59]}  c5 {[%clk 0:02:30]} 6. c3 {[%clk 0:02:56]}  Nc6 {[%clk 0:02:30]} 7. Ne5 {[%clk 0:02:51]}  O-O {[%clk 0:02:27]} 8. Ndf3 {[%clk 0:02:45]}  Ne4 {[%clk 0:02:25]} 9. Bd3 {[%clk 0:02:38]}  f6 {[%clk 0:02:16]} 10. Nxc6 {[%clk 0:02:34]}  bxc6 {[%clk 0:02:17]} 11. Bxd6 {[%clk 0:02:27]}  Qxd6 {[%clk 0:02:18]} 12. Bxe4 {[%clk 0:02:24]}  dxe4 {[%clk 0:02:18]} 13. Nd2 {[%clk 0:02:24]}  Ba6 {[%clk 0:01:49]} 14. Nxe4 {[%clk 0:02:01]}  Qd5 {[%clk 0:01:49]} 15. f3 {[%clk 0:01:50]}  cxd4 {[%clk 0:01:46]} 16. Qxd4 {[%clk 0:01:45]}  Qa5 {[%clk 0:01:36]} 17. Qc5 {[%clk 0:01:34]}  Qc7 {[%clk 0:01:19]} 18. O-O-O {[%clk 0:01:29]}  Rab8 {[%clk 0:01:18]} 19. Qd6 {[%clk 0:01:18]}  Qa5 {[%clk 0:01:18]} 20. Qxe6+ {[%clk 0:01:17]}  Kh8 {[%clk 0:01:17]} 21. Nd6 {[%clk 0:00:42]}  Rxb2 {[%clk 0:01:02]} 22. Nf7+ {[%clk 0:00:39]}  Kg8 {[%clk 0:00:56]} 23. Nh6+ {[%clk 0:00:39]}  Kh8 {[%clk 0:00:57]} 24. Qg8+ {[%clk 0:00:39]}  Rxg8 {[%clk 0:00:57]} 25. Nf7# {[%clk 0:00:40]} 1-0


[Site "https://www.chess.com"]

[Event "Titled Tuesday Blitz April 19 Late 2022"]
[White "Kaasen, Tor Fredrik"]
[Black "Fedoseev, Vladimir"]
[WhiteFideId "1516647"]
[BlackFideId "24130737"]
[WhiteElo "2335"]
[BlackElo "2726"]
[Result "0-1"]
[Round "06"]
[TimeControl "180+1"]
[Date "2022.04.19"]
[WhiteClock "0:01:02"]
[BlackClock "0:01:01"]

1. e4 {[%clk 0:03:00]}  c5 {[%clk 0:02:58]} 2. Nf3 {[%clk 0:03:00]}  d6 {[%clk 0:02:58]} 3. d4 {[%clk 0:03:00]}  cxd4 {[%clk 0:02:59]} 4. Nxd4 {[%clk 0:03:01]}  Nf6 {[%clk 0:02:59]} 5. Nc3 {[%clk 0:03:01]}  a6 {[%clk 0:02:58]} 6. Bg5 {[%clk 0:03:01]}  Nbd7 {[%clk 0:02:58]} 7. Bc4 {[%clk 0:03:01]}  Qb6 {[%clk 0:02:56]} 8. Bb3 {[%clk 0:03:01]}  e6 {[%clk 0:02:56]} 9. Bxf6 {[%clk 0:03:02]}  Nxf6 {[%clk 0:02:55]} 10. Qd2 {[%clk 0:03:02]}  Nd7 {[%clk 0:02:55]} 11. O-O-O {[%clk 0:03:02]}  Nc5 {[%clk 0:02:55]} 12. f4 {[%clk 0:03:02]}  Bd7 {[%clk 0:02:53]} 13. f5 {[%clk 0:03:03]}  O-O-O {[%clk 0:02:53]} 14. Rhf1 {[%clk 0:03:03]}  Be7 {[%clk 0:02:51]} 15. Kb1 {[%clk 0:03:01]}  Bf6 {[%clk 0:02:49]} 16. Nf3 {[%clk 0:02:59]}  Bc6 {[%clk 0:02:45]} 17. fxe6 {[%clk 0:02:55]}  fxe6 {[%clk 0:02:45]} 18. Ng5 {[%clk 0:02:55]}  Rhe8 {[%clk 0:02:11]} 19. Nf7 {[%clk 0:02:51]}  Rd7 {[%clk 0:02:11]} 20. Nxd6+ {[%clk 0:02:49]}  Kb8 {[%clk 0:02:10]} 21. Qf4 {[%clk 0:02:13]}  e5 {[%clk 0:01:40]} 22. Qg4 {[%clk 0:02:05]}  Red8 {[%clk 0:01:39]} 23. Nc4 {[%clk 0:01:57]}  Qc7 {[%clk 0:01:33]} 24. Ne3 {[%clk 0:01:50]}  Rxd1+ {[%clk 0:01:19]} 25. Rxd1 {[%clk 0:01:50]}  Rd4 {[%clk 0:01:10]} 26. Ned5 {[%clk 0:01:47]}  Qd6 {[%clk 0:01:09]} 27. Re1 {[%clk 0:01:31]}  Nxb3 {[%clk 0:01:03]} 28. axb3 {[%clk 0:01:19]}  Bxd5 {[%clk 0:01:03]} 29. Nxd5 {[%clk 0:01:14]}  Qxd5 {[%clk 0:01:04]} 30. c3 {[%clk 0:01:15]}  Qd7 {[%clk 0:01:04]} 31. Qh5 {[%clk 0:01:02]}  Rd2 {[%clk 0:01:03]} 32. Kc1 {[%clk 0:01:02]}  Qd3 {[%clk 0:01:01]} 0-1


[Site "https://www.chess.com"]